bitfinex/quotes_ETHUSD_20241216
["timestamp","ask_amount","ask_price","bid_price","bid_amount"]
[1734384997167,0.8086,4029.9,4028.8,3.7772]
[1734384997168,0.22925095,4029.7,4028.8,3.7772]
[1734384997477,0.41281689,4029.6,4028.8,0.7772]
[1734384997681,0.41281689,4029.5,4028.8,0.7772]
[1734384998015,0.22934293,4029.4,4028.8,3.7772]
[1734384998199,0.22934293,4029.3,4028.8,3.7772]
[1734384998369,0.8086,4029.9,4028.8,3.7772]
[1734384998711,0.41291539,4029.8,4028.8,3.7772]
[1734384998906,0.41291539,4029.7,4028.8,3.7772]
[1734384999113,0.8086,4029.5,4028.8,3.0]
[1734384999313,0.41291539,4029.4,4028.3,0.7772]
[1734384999612,0.8086,4029.5,4028.3,0.7772]
[1734384999613,0.41291539,4029.3,4028.3,0.7772]
[1734384999816,1.22151539,4029.2,4027.9,3.31036984]
[1734385000011,0.41291539,4029.1,4027.9,3.31036984]
[1734385000181,0.22940177,4029.0,4028.3,2.53316984]
[1734385000509,0.41291539,4028.9,4028.3,2.53316984]
[1734385000712,0.4130898,4028.8,4028.3,2.53316984]
[1734385000877,0.41307849,4028.7,4028.3,2.53316984]
[1734385001069,0.8086,4029.2,4028.3,2.53316984]
[1734385001070,0.41307849,4028.6,4028.3,2.53316984]
[1734385001285,0.22949435,4028.5,4028.3,2.53316984]
[1734385001486,0.8086,4029.2,4028.3,2.53316984]
[1734385001687,0.41296662,4029.1,4028.3,2.53316984]
[1734385001887,0.41296662,4029.0,4028.3,2.53316984]
[1734385002113,0.41296662,4028.9,4028.4,3.0]
[1734385002411,0.2294259,4028.8,4028.4,3.0]
[1734385002611,0.22940361,4028.7,4028.4,3.0]
[1734385002819,0.8086,4029.2,4028.4,3.0]
[1734385002999,0.41292028,4029.1,4028.4,3.0]
[1734385003202,0.8086,4029.2,4028.4,3.0]
[1734385003203,0.41292028,4029.0,4028.4,3.0]
[1734385003373,0.41292028,4028.9,4028.4,3.0]
[1734385003573,0.22939736,4028.8,4028.4,3.0]
[1734385003800,0.22939736,4028.7,4028.4,3.0]
[1734385004004,0.22939736,4028.7,4027.9,0.7772]
[1734385004005,0.41289311,4028.6,4028.0,3.0]
[1734385004274,0.41286321,4028.5,4028.0,3.0]
[1734385004574,0.22938453,4028.4,4028.0,3.0]
[1734385004779,0.99210459,4029.1,4028.0,3.0]
[1734385005085,0.41295289,4029.0,4028.0,3.0]
[1734385005287,0.41295289,4028.9,4028.0,3.0]
[1734385005630,0.99210459,4029.1,4028.0,3.0]
[1734385005631,0.41295289,4028.8,4028.0,3.0]
[1734385005917,0.7576,4028.6,4028.0,3.0]
[1734385006117,0.2294181,4028.5,4028.0,3.0]
[1734385006290,0.7576,4028.6,4027.6,3.8198]
[1734385006484,0.22929348,4028.5,4028.0,3.0]
[1734385006790,0.7724,4029.0,4028.4,3.7554]
[1734385007101,0.4127523,4028.9,4028.4,3.7554]
[1734385007437,0.2293067,4028.8,4028.4,3.7554]
[1734385007576,0.2293067,4028.7,4028.4,3.7554]
[1734385007775,0.7724,4029.3,4028.4,3.7554]
[1734385007999,0.41267612,4029.2,4028.4,3.7554]
[1734385008202,0.41267612,4029.1,4028.4,3.7554]
[1734385008415,0.41267612,4029.0,4028.4,3.7554]
[1734385008617,0.41267612,4028.9,4028.4,3.7554]
[1734385008783,0.22926582,4028.8,4028.4,3.7554]
[1734385009114,0.7724,4029.3,4028.4,3.7554]
[1734385009287,0.41288524,4029.2,4028.4,3.7554]
[1734385009475,0.41288524,4029.1,4028.4,3.7554]
[1734385009815,0.41288524,4029.0,4028.4,3.7554]
[1734385009977,0.41288524,4028.9,4028.4,3.7554]
[1734385010177,0.41295464,4028.8,4028.4,3.7554]
[1734385010483,0.22938048,4028.7,4028.4,3.7554]
[1734385010672,0.7724,4029.3,4028.4,3.7554]
[1734385010871,0.4130189,4029.2,4028.4,3.7554]
[1734385011196,0.4130189,4029.1,4028.4,3.7554]
[1734385011371,0.4130238,4029.0,4028.4,3.7554]
[1734385011577,1.18193226,4029.6,4028.8,3.0]
[1734385011874,1.53966879,4030.2,4028.9,0.7752]
[1734385011875,0.41305859,4029.5,4028.9,0.7752]
[1734385012074,0.22947721,4029.4,4028.9,0.7752]
[1734385012395,0.8148,4029.9,4029.1,2.53316984]
[1734385012606,0.41314554,4029.8,4029.2,3.0]
[1734385012778,0.22952493,4029.7,4029.2,3.0]
[1734385012978,0.7933,4030.2,4029.2,3.0]
[1734385013275,0.41316633,4030.1,4029.3,0.8076]
[1734385013481,0.41316633,4030.0,4029.3,0.8076]
[1734385013684,0.41316633,4029.9,4029.3,0.8076]
[1734385013872,0.41316633,4029.8,4029.3,0.8076]
[1734385014111,0.22953636,4029.7,4029.3,0.8076]
[1734385014310,0.36713226,4030.3,4029.6,3.0]
[1734385014513,0.41324542,4030.2,4029.6,3.0]
[1734385014818,0.41324542,4030.1,4029.6,3.0]
[1734385015022,0.22958093,4030.0,4029.6,3.0]
[1734385015202,0.22958093,4029.9,4029.6,3.0]
[1734385015522,0.7933,4030.5,4029.6,3.0]
[1734385015680,0.41346971,4030.4,4029.6,3.0]
[1734385015878,0.41346971,4030.3,4029.6,3.0]
[1734385016233,0.41348086,4030.2,4029.6,3.0]
[1734385016445,0.41348086,4030.1,4029.6,3.0]
[1734385016591,0.22971743,4030.0,4029.6,3.0]
[1734385016793,0.22974175,4029.9,4029.6,3.0]
[1734385017040,0.7933,4030.5,4029.6,3.0]
[1734385017204,0.63225274,4030.4,4029.6,3.0]
[1734385017402,0.41352337,4030.3,4029.6,3.0]
[1734385017632,0.41352337,4030.2,4029.6,3.0]
[1734385017792,0.21872937,4030.4,4029.6,3.0]
[1734385017793,0.41352337,4030.1,4029.6,3.0]
[1734385017994,0.7933,4030.5,4029.6,3.0]
[1734385018202,0.41347599,4030.4,4029.6,3.0]
[1734385018411,0.41344167,4030.3,4029.3,0.8076]
[1734385018606,0.7678,4030.1,4028.9,0.7819]
[1734385018821,0.7678,4029.9,4028.6,0.7819]
[1734385019065,0.56700167,4029.8,4028.6,0.7819]
[1734385019274,0.41344167,4029.7,4028.6,0.7819]
[1734385019431,0.41344167,4029.6,4028.6,0.7819]
[1734385019755,0.41344167,4029.5,4028.6,0.7819]
[1734385019937,0.41344167,4029.4,4028.6,0.7819]
[1734385020259,0.41344167,4029.3,4028.6,0.7819]
[1734385020455,1.18124167,4029.2,4028.6,0.7819]
[1734385020757,0.41344167,4029.1,4028.6,3.0]
[1734385020924,0.7678,4029.2,4028.6,3.0]
[1734385021122,0.41346845,4029.1,4028.6,3.0]
[1734385021325,0.22970557,4029.0,4028.6,3.0]
[1734385021513,0.7678,4029.2,4028.6,3.0]
[1734385021710,0.41346692,4029.1,4028.6,3.0]
[1734385021959,0.22971137,4029.0,4028.6,3.0]
[1734385022118,0.7678,4029.2,4028.6,3.0]
[1734385022119,0.22972936,4028.9,4028.6,3.0]
[1734385022314,0.7678,4029.2,4028.6,3.0]
[1734385022625,0.4135191,4029.1,4028.6,3.0]
[1734385022827,0.22973288,4029.0,4028.6,3.0]
[1734385023009,0.7678,4029.2,4028.6,3.0]
[1734385023210,0.41350925,4029.1,4028.6,3.0]
[1734385023414,0.22972736,4029.0,4028.6,3.0]
[1734385023643,0.7678,4029.2,4028.6,3.0]
[1734385023829,0.18379902,4029.1,4028.6,3.0]
[1734385024128,0.7678,4029.2,4028.6,3.0]
[1734385024357,0.41355659,4029.1,4028.6,3.0]
[1734385024658,0.22974741,4029.0,4028.6,3.0]
[1734385024829,0.7678,4029.2,4028.6,3.0]
[1734385025032,0.41355327,4029.1,4028.6,3.0]
[1734385025229,0.22975145,4029.0,4028.6,3.0]
[1734385025434,0.36759585,4029.6,4028.7,0.7819]
[1734385025741,0.41357684,4029.5,4028.7,0.7819]
[1734385025944,0.36759585,4029.7,4028.7,0.7819]
[1734385025945,0.41357684,4029.4,4028.7,0.7819]
[1734385026146,0.41357684,4029.3,4028.7,0.7819]
[1734385026333,0.41357684,4029.3,4028.6,3.0]
[1734385026334,0.41359455,4029.2,4028.6,3.0]
[1734385026516,0.41360666,4029.1,4028.6,3.0]
[1734385026717,0.22976492,4029.0,4028.6,3.0]
[1734385026918,0.21618417,4029.6,4028.6,3.0]
[1734385027264,0.41372399,4029.5,4028.6,3.0]
[1734385027571,0.41372399,4029.4,4029.0,3.0]
[1734385027916,0.41372399,4029.3,4029.1,0.7819]
[1734385028118,0.41372399,4029.2,4029.1,0.7819]
[1734385028656,0.41372399,4029.2,4028.9,3.08456633]
[1734385028860,1.02940483,4029.7,4029.0,3.0]
[1734385028861,0.36759585,4029.7,4029.0,3.0]
[1734385029019,0.41389528,4029.6,4029.0,3.0]
[1734385029224,0.41389528,4029.5,4029.0,3.0]
[1734385029553,0.41389528,4029.4,4029.0,3.0]
[1734385029738,0.22994191,4029.3,4029.0,3.0]
[1734385029957,0.36759585,4029.9,4029.2,2.30266633]
[1734385030158,0.7678,4030.4,4029.6,2.30266633]
[1734385030339,0.78184031,4030.3,4029.6,2.30266633]
[1734385030526,0.78184031,4030.2,4029.6,2.30266633]
[1734385030734,0.41391543,4030.1,4030.0,5.30266633]
[1734385031035,0.22995305,4030.1,4030.0,5.30266633]
[1734385032465,1.03002419,4030.7,4030.0,5.30266633]
[1734385032777,1.26524771,4030.6,4030.0,5.30266633]
[1734385032939,1.54503629,4030.9,4030.0,5.30266633]
[1734385032940,0.41368883,4030.5,4030.0,5.30266633]
[1734385033140,1.54503629,4030.9,4030.0,5.30266633]
[1734385033141,0.41368883,4030.4,4030.0,5.30266633]
[1734385033474,0.41368883,4030.3,4030.0,5.30266633]
[1734385033779,0.22982819,4030.2,4030.0,5.30266633]
[1734385033983,1.3974449,4030.8,4030.0,5.30266633]
[1734385034285,0.41333644,4030.7,4030.0,5.30266633]
[1734385034472,0.7979,4031.0,4030.4,2.30266633]
[1734385034473,0.41333644,4030.6,4030.4,2.30266633]
[1734385034782,0.36742071,4031.0,4030.4,2.30266633]
[1734385035009,0.41330387,4030.9,4030.8,2.30266633]
[1734385035196,1.54503629,4031.5,4030.8,2.30266633]
[1734385035197,0.36742071,4031.4,4030.8,2.30266633]
[1734385035477,2.34103629,4031.7,4031.2,2.30266633]
[1734385035478,0.41323052,4031.3,4031.2,2.30266633]
[1734385036536,0.796,4031.7,4031.2,2.30266633]
[1734385036898,2.57239868,4032.5,4031.2,2.30266633]
[1734385036899,0.4131348,4031.6,4031.2,2.30266633]
[1734385037068,0.4131348,4031.5,4031.2,5.30266633]
[1734385037384,0.22951948,4031.4,4031.2,5.30266633]
[1734385037579,0.36723117,4031.9,4031.2,5.30266633]
[1734385037787,0.63100988,4031.8,4031.2,5.30266633]
[1734385037986,0.41297434,4031.7,4031.2,5.30266633]
[1734385038287,2.07586552,4031.6,4030.4,5.30266633]
[1734385038454,0.78019669,4031.5,4030.4,5.30266633]
[1734385038647,0.57230519,4031.4,4030.4,5.30266633]
[1734385038846,0.41296552,4031.3,4030.4,5.30266633]
[1734385039041,0.41296552,4031.2,4030.4,5.30266633]
[1734385039259,0.22943029,4031.1,4030.4,5.30266633]
[1734385039459,0.22943029,4031.0,4030.4,5.30266633]
[1734385039672,0.15933967,4031.4,4030.4,2.30266633]
[1734385039873,0.99667875,4031.3,4030.0,2.30266633]
[1734385040090,1.4806243,4031.2,4030.0,2.30266633]
[1734385040259,1.26197323,4031.1,4030.0,2.30266633]
[1734385040584,0.58556177,4031.2,4030.0,2.30266633]
[1734385040585,0.8132,4030.9,4030.0,2.30266633]
[1734385040790,0.41282719,4030.8,4030.0,2.30266633]
[1734385040962,0.41282719,4030.7,4030.0,2.30266633]
[1734385041319,0.8132,4030.9,4030.4,2.30266633]
[1734385041320,0.41281237,4030.6,4030.4,2.30266633]
[1734385041497,0.22934844,4030.5,4030.4,2.30266633]
[1734385041653,0.22934844,4030.8,4030.4,2.30266633]
[1734385041849,0.41285643,4030.7,4030.4,2.30266633]
[1734385042046,0.41285643,4030.6,4030.4,2.30266633]
[1734385042246,0.22934844,4030.5,4030.4,2.30266633]
[1734385042951,0.8132,4030.9,4030.4,2.30266633]
[1734385043150,0.4132018,4030.8,4030.4,2.30266633]
[1734385043350,0.8132,4030.9,4030.4,2.30266633]
[1734385043351,0.4132018,4030.7,4030.4,2.30266633]
[1734385043669,0.22955855,4030.6,4030.4,2.30266633]
[1734385043849,0.92976538,4031.3,4030.4,2.30266633]
[1734385044054,0.41320638,4031.2,4030.4,2.30266633]
[1734385044394,0.7741,4031.0,4030.0,5.30266633]
[1734385044603,0.41320638,4030.9,4030.0,5.30266633]
[1734385044754,0.7741,4031.0,4030.0,5.30266633]
[1734385044755,0.41320638,4030.8,4030.0,5.30266633]
[1734385044949,0.7741,4031.0,4030.0,5.30266633]
[1734385044950,0.18364739,4030.7,4030.0,5.30266633]
[1734385045172,0.41318605,4030.6,4030.0,5.30266633]
[1734385045506,0.22953866,4030.5,4030.0,5.30266633]
[1734385045710,0.7741,4031.0,4030.0,5.30266633]
[1734385046012,0.41317445,4030.9,4030.0,5.30266633]
[1734385046181,0.7741,4031.0,4030.0,5.30266633]
[1734385046368,0.41316987,4030.9,4030.0,5.30266633]
[1734385046562,0.41316987,4030.8,4030.0,5.30266633]
[1734385046771,0.22953882,4030.7,4030.4,2.30266633]
[1734385047091,0.22953882,4030.6,4030.4,2.30266633]
[1734385047310,0.8139,4031.3,4030.4,2.30266633]
[1734385047621,4.78103515,4032.4,4030.8,2.30266633]
[1734385047622,0.41309855,4031.2,4030.8,2.30266633]
[1734385047827,0.41309855,4031.1,4030.8,2.30266633]
[1734385047982,0.22949973,4031.0,4030.8,2.30266633]
[1734385048183,0.8139,4031.6,4030.8,2.30266633]
[1734385048379,0.41296685,4031.5,4030.8,2.30266633]
[1734385048631,0.41296685,4031.4,4030.8,2.30266633]
[1734385048875,0.41296685,4031.3,4030.5,0.7561]
[1734385048995,0.18354091,4031.2,4030.6,3.0]
[1734385049181,0.41296685,4031.2,4030.5,0.7561]
[1734385049385,0.41297206,4031.1,4030.5,0.7561]
[1734385049585,0.22942892,4031.0,4030.5,0.7561]
[1734385049824,0.8139,4031.6,4030.5,0.7561]
[1734385050132,0.41298027,4031.5,4030.5,0.7561]
[1734385050312,0.41298027,4031.4,4030.5,0.7561]
[1734385050623,0.41298027,4031.3,4030.7,2.30266633]
[1734385050926,0.22943354,4031.2,4030.7,2.30266633]
[1734385051127,0.8139,4031.6,4030.7,2.30266633]
[1734385051428,0.41298188,4031.5,4030.5,0.7561]
[1734385051594,0.41298188,4031.4,4030.6,3.0]
[1734385051932,0.41298188,4031.3,4030.6,3.0]
[1734385052224,0.22943455,4031.2,4030.6,3.0]
[1734385052414,0.8139,4031.6,4030.6,3.0]
[1734385052415,0.22943455,4031.1,4030.6,3.0]
[1734385052612,0.8139,4031.6,4030.6,3.0]
[1734385052819,0.18359726,4031.5,4030.6,3.0]
[1734385052987,0.41309189,4031.4,4030.6,3.0]
[1734385053330,0.41309189,4031.3,4030.6,3.0]
[1734385053628,0.41309189,4031.2,4030.6,3.0]
[1734385053837,0.22949658,4031.1,4030.6,3.0]
[1734385054057,0.8139,4031.6,4030.6,3.0]
[1734385054229,0.41312928,4031.5,4030.6,3.0]
[1734385054552,0.41320297,4031.4,4030.6,3.0]
[1734385054755,0.41320297,4031.3,4030.6,3.0]
[1734385055054,0.8139,4031.6,4030.6,3.0]
[1734385055262,0.41321174,4031.5,4030.6,3.0]
[1734385055441,0.41321174,4031.4,4030.7,0.02480426]
[1734385055646,0.22957984,4031.3,4030.9,2.30266633]
[1734385055848,0.8131,4031.9,4030.9,2.30266633]
[1734385055849,0.8131,4031.9,4031.1,0.7819]
[1734385056152,0.4132323,4031.8,4031.3,2.30266633]
[1734385056453,0.4132323,4031.7,4031.3,2.30266633]
[1734385056654,0.8131,4031.9,4031.3,2.30266633]
[1734385056655,0.4132323,4031.6,4031.3,2.30266633]
[1734385056861,0.4132323,4031.5,4030.9,2.30266633]
[1734385057012,1.2263323,4031.4,4030.5,2.30266633]
[1734385057213,0.4132323,4031.3,4030.5,2.30266633]
[1734385057417,1.03002419,4031.8,4029.8,0.26892265]
[1734385057418,0.8131,4031.1,4029.8,2.30266633]
[1734385057628,1.03002419,4031.5,4029.8,2.30266633]
[1734385057629,0.8131,4030.9,4029.8,2.30266633]
[1734385057864,0.4132323,4030.8,4029.8,2.30266633]
[1734385058022,0.4132323,4030.7,4029.8,2.42473285]
[1734385058223,0.4132323,4030.6,4029.8,2.42473285]
[1734385058422,0.4132323,4030.5,4029.8,2.42473285]
[1734385058646,0.41340344,4030.4,4029.8,2.42473285]
[1734385058864,0.22957484,4030.3,4029.8,5.42473285]
[1734385059250,0.36726979,4030.7,4029.8,5.42473285]
[1734385059587,0.41382591,4030.6,4029.8,5.42473285]
[1734385059717,0.41382591,4030.5,4029.8,5.42473285]
[1734385059913,0.8131,4030.9,4030.3,2.30266633]
[1734385059914,0.41382591,4030.4,4030.3,2.30266633]
[1734385060197,1.18036979,4030.9,4030.3,2.30266633]
[1734385060320,0.78118334,4030.8,4030.3,2.30266633]
[1734385060516,0.41391355,4030.7,4030.3,2.30266633]
[1734385060721,0.41391355,4030.6,4030.3,2.30266633]
[1734385060946,0.22992421,4030.5,4030.3,2.30266633]
[1734385061155,0.22992421,4030.4,4030.3,2.30266633]
[1734385061971,0.8131,4031.2,4030.3,6.08456633]
[1734385062178,0.78118794,4031.1,4030.7,2.30266633]
[1734385062321,0.59794535,4031.0,4030.7,2.30266633]
[1734385062660,0.41396043,4030.9,4030.7,2.30266633]
[1734385062858,0.22998258,4030.8,4030.7,2.30266633]
[1734385063059,0.41396886,4030.8,4030.4,3.0]
[1734385063260,0.8131,4031.2,4030.3,3.08456633]
[1734385063261,0.41396886,4030.7,4030.3,2.30266633]
[1734385063424,0.22998258,4030.6,4030.3,2.30266633]
[1734385063619,0.22998258,4030.5,4030.3,2.30266633]
[1734385063825,0.36797213,4031.0,4030.3,2.30266633]
[1734385064049,0.41405099,4030.9,4030.3,2.30266633]
[1734385064359,0.78202312,4030.8,4030.3,2.30266633]
[1734385064577,0.41405099,4030.7,4030.3,2.30266633]
[1734385064869,0.41405099,4030.6,4030.3,2.30266633]
[1734385065061,0.41405099,4030.5,4030.3,2.30266633]
[1734385065261,0.23002833,4030.4,4030.3,2.30266633]
[1734385065500,0.8131,4031.2,4030.3,2.30266633]
[1734385065796,0.78213216,4031.1,4030.3,2.30266633]
[1734385065948,0.78213216,4031.0,4030.3,2.30266633]
[1734385066150,0.78213216,4030.9,4030.3,2.30266633]
[1734385066350,0.78213216,4030.8,4030.3,2.30266633]
[1734385066579,0.15952322,4031.1,4030.3,2.30266633]
[1734385066580,0.78213216,4030.7,4030.3,2.30266633]
[1734385066777,0.41407003,4030.6,4030.3,2.30266633]
[1734385066996,0.15952322,4031.1,4030.3,2.30266633]
[1734385066997,0.41407003,4030.5,4030.3,2.30266633]
[1734385067202,0.23003883,4030.4,4030.3,2.30266633]
[1734385069213,0.36806213,4031.1,4030.3,2.30266633]
[1734385069375,0.8131,4031.2,4030.7,2.30266633]
[1734385069376,0.78224232,4031.0,4030.7,2.30266633]
[1734385069584,0.78224232,4030.9,4030.7,5.30266633]
[1734385069793,0.2301001,4030.8,4030.7,5.30266633]
[1734385070312,0.36806213,4031.3,4030.7,5.30266633]
[1734385070508,0.78226358,4031.2,4030.7,5.30266633]
[1734385070816,0.41420145,4031.1,4030.7,5.30266633]
[1734385071112,0.41420145,4031.0,4030.8,3.0]
[1734385071401,0.7771,4031.6,4030.7,2.30266633]
[1734385071402,0.23011199,4030.9,4030.7,5.30266633]
[1734385071620,0.23011199,4030.8,4030.7,5.30266633]
[1734385072567,1.80712419,4031.6,4030.7,5.30266633]
[1734385072772,1.63341131,4031.5,4030.7,5.30266633]
[1734385072973,0.55226159,4031.4,4030.7,5.30266633]
[1734385073295,0.78238109,4031.3,4030.7,5.30266633]
[1734385073498,0.78238109,4031.2,4030.7,5.30266633]
[1734385073808,0.41420106,4031.1,4030.7,5.30266633]
[1734385074002,0.41420106,4031.0,4030.7,5.30266633]
[1734385074187,0.23011252,4030.9,4030.7,5.30266633]
[1734385074524,0.36818003,4031.3,4030.7,5.30266633]
[1734385074525,0.23011252,4030.8,4030.7,5.30266633]
[1734385075118,0.2301092,4030.8,4030.7,5.30266633]
[1734385075422,0.36818003,4031.3,4030.7,5.30266633]
[1734385075732,0.41416104,4031.2,4030.7,5.30266633]
[1734385076019,1.21916104,4031.1,4030.4,3.0]
[1734385076179,0.41419157,4031.0,4030.4,3.0]
[1734385076374,0.41419157,4030.9,4030.4,3.0]
[1734385076702,1.63443363,4030.8,4030.3,2.30266633]
[1734385076902,0.78242183,4030.7,4030.3,2.30266633]
[1734385077227,0.78242183,4030.6,4030.3,2.30266633]
[1734385077517,0.41422984,4030.5,4030.3,2.30266633]
[1734385077740,0.41422984,4030.4,4030.1,2.30122667]
[1734385077877,0.23011999,4030.3,4030.1,2.30122667]
[1734385078075,0.36819199,4030.8,4030.1,2.30122667]
[1734385078413,1.03002419,4030.9,4030.1,2.30122667]
[1734385078414,1.6340037,4030.7,4030.1,2.30122667]
[1734385078618,0.78226109,4030.6,4030.1,2.30122667]
[1734385078916,0.4140691,4030.5,4030.1,2.30122667]
[1734385079217,0.4140691,4030.4,4030.1,2.30122667]
[1734385079423,1.03002419,4030.9,4030.1,2.30122667]
[1734385079424,0.23003839,4030.3,4030.1,2.30122667]
[1734385079573,1.39821618,4030.8,4030.1,2.30122667]
[1734385079775,1.63397171,4030.7,4030.1,2.30122667]
[1734385079975,1.03002419,4030.8,4030.1,2.30122667]
[1734385079976,0.78216457,4030.6,4030.1,2.30122667]
[1734385080175,0.41397258,4030.5,4030.1,2.18162667]
[1734385080412,0.41397258,4030.4,4030.1,2.18162667]
[1734385080611,0.22998488,4030.3,4030.1,2.18162667]
[1734385080818,0.36819199,4030.8,4030.1,2.18162667]
[1734385081124,1.63372396,4030.7,4030.1,2.18162667]
[1734385081323,0.41389448,4030.6,4030.1,2.18162667]
[1734385081479,0.41388912,4030.5,4030.1,2.18162667]
[1734385081812,0.004412,4030.3,4030.1,2.18162667]
[1734385085020,0.004412,4030.3,4030.1,2.47138265]
[1734385086997,0.004412,4030.3,4030.1,2.18162667]
[1734385088132,0.004412,4030.3,4030.2,2.30090424]
[1734385088514,0.004412,4030.3,4030.2,6.66116118]
[1734385088696,0.36874342,4031.0,4030.2,6.66116118]
[1734385088904,1.54503629,4031.4,4030.4,0.7891]
[1734385088905,0.41496903,4030.9,4030.4,0.7891]
[1734385089081,0.23053516,4030.8,4030.4,0.7891]
[1734385089281,0.36888556,4031.2,4030.7,2.30090424]
[1734385089599,0.41496642,4031.1,4030.7,2.30090424]
[1734385089802,1.03002419,4031.4,4030.7,2.30090424]
[1734385089803,0.41496642,4031.0,4030.7,2.30090424]
[1734385090010,0.8267,4031.5,4030.7,2.30090424]
[1734385090011,0.2305369,4030.9,4030.7,2.30090424]
[1734385090224,0.36887995,4031.4,4030.7,2.30090424]
[1734385090427,1.63768324,4031.3,4030.7,2.30090424]
[1734385090734,0.78387088,4031.2,4030.7,2.30090424]
[1734385090897,0.41499093,4031.1,4030.7,2.30090424]
[1734385091097,0.23055052,4031.0,4030.7,2.30090424]
[1734385091335,0.23055052,4030.9,4030.7,2.30090424]
[1734385091596,1.85672419,4031.5,4030.7,2.30090424]
[1734385091597,1.03002419,4031.4,4030.7,2.30090424]
[1734385091842,1.63733157,4031.3,4030.7,2.30090424]
[1734385092135,1.63731318,4031.2,4030.7,2.30090424]
[1734385092337,0.78355053,4031.1,4030.7,2.30090424]
[1734385092537,0.41485185,4031.0,4030.7,2.30090424]
[1734385092741,0.41485185,4030.9,4030.7,2.30090424]
[1734385092899,0.23047444,4030.8,4030.7,2.30090424]
[1734385093442,0.36869868,4031.2,4030.7,2.30090424]
[1734385093639,0.41479036,4031.1,4030.5,0.1239979]
[1734385093823,3.76729417,4031.8,4030.5,0.1239979]
[1734385093824,1.03002419,4031.7,4031.1,3.8293]
[1734385094000,1.03002419,4031.7,4031.5,2.30090424]
[1734385094001,1.63722219,4031.6,4031.5,2.30090424]
[1734385094197,2.91774383,4031.6,4031.5,2.30090424]
[1734385094497,1.63716052,4031.6,4031.5,2.30090424]
[1734385094749,1.26847193,4031.6,4031.5,2.30090424]
[1734385094950,0.41479084,4031.6,4031.5,2.30090424]
[1734385095244,0.23043037,4031.6,4031.5,2.30090424]
[1734385095449,1.03002419,4032.0,4031.5,2.30090424]
[1734385095611,1.08375205,4031.9,4031.5,2.30090424]
[1734385095800,0.41455685,4031.8,4031.6,3.0]
[1734385096002,1.03002419,4032.3,4031.6,3.8074]
[1734385096242,1.26783125,4032.2,4031.9,2.30090424]
[1734385096450,0.41457076,4032.1,4031.9,2.30090424]
[1734385096648,0.41457076,4032.0,4031.9,2.30090424]
[1734385097242,0.23031652,4032.0,4031.9,2.30090424]
[1734385097453,1.03002419,4032.6,4031.9,2.30090424]
[1734385097600,1.03002419,4032.9,4032.3,3.07110424]
[1734385097941,2.29523629,4033.1,4032.3,3.07110424]
[1734385097942,0.41432394,4032.8,4032.7,2.30090424]
[1734385098149,0.41432394,4032.8,4032.4,3.0]
[1734385098348,1.03002419,4033.2,4032.4,3.0]
[1734385098503,0.41404752,4033.1,4032.4,3.0]
[1734385098845,0.41404752,4033.0,4032.4,3.0]
[1734385099016,1.03002419,4033.3,4032.4,3.0]
[1734385099017,0.41404752,4032.9,4032.4,3.0]
[1734385099215,0.23002633,4032.8,4032.4,3.0]
[1734385099428,1.03002419,4033.3,4032.4,3.0]
[1734385099605,1.265741,4033.2,4032.4,3.0]
[1734385099940,0.41384593,4033.1,4032.4,3.0]
[1734385100101,0.41384593,4033.0,4032.4,3.0]
[1734385100317,0.53853089,4033.3,4032.4,3.0]
[1734385100531,0.41370627,4033.2,4032.4,3.0]
[1734385100738,0.41370627,4033.1,4032.4,3.0]
[1734385100925,0.41370627,4033.0,4032.4,3.0]
[1734385101128,0.7502,4033.4,4032.4,3.0]
[1734385101325,0.41348544,4033.3,4032.4,3.0]
[1734385101532,0.41348544,4033.2,4032.4,3.0]
[1734385101735,0.41348544,4033.1,4032.4,3.0]
[1734385101936,0.7502,4033.4,4032.4,3.0]
[1734385102249,0.41350093,4033.3,4032.4,3.0]
[1734385102407,0.41350093,4033.2,4032.4,3.0]
[1734385102608,0.22972223,4033.1,4032.4,3.0]
[1734385102949,0.7502,4033.4,4032.4,3.0]
[1734385103137,0.41327425,4033.3,4032.4,3.0]
[1734385103300,0.41327425,4033.2,4032.4,3.0]
[1734385103651,0.7502,4033.4,4032.4,3.0]
[1734385104153,0.41291212,4033.3,4032.4,3.0]
[1734385104304,0.41291212,4033.2,4032.4,3.0]
[1734385104645,0.7502,4033.4,4032.4,3.0]
[1734385104849,0.41282215,4033.3,4032.4,3.0]
[1734385105150,0.22934564,4033.2,4032.6,2.2984038]
[1734385105441,0.7502,4033.4,4032.6,2.2984038]
[1734385105644,0.4127275,4033.3,4032.6,2.2984038]
[1734385105803,0.22929306,4033.2,4032.6,2.2984038]
[1734385106147,0.7502,4033.4,4032.6,2.2984038]
[1734385106449,0.41267146,4033.3,4032.6,2.2984038]
[1734385106608,0.7502,4033.4,4032.6,2.2984038]
[1734385106808,0.4126015,4033.3,4032.6,2.2984038]
[1734385107047,0.7502,4033.4,4032.6,2.2984038]
[1734385107252,0.18336374,4033.3,4032.6,2.2984038]
[1734385107540,0.41256768,4033.3,4032.6,2.2984038]
[1734385107740,0.7502,4033.4,4032.6,2.2984038]
[1734385107948,0.22918713,4033.3,4032.6,2.2984038]
[1734385109549,0.7547,4033.7,4033.0,3.1006038]
[1734385109718,0.7547,4033.7,4033.1,3.0]
[1734385110049,0.7547,4033.7,4033.4,2.2984038]
[1734385110549,0.8232,4034.4,4033.4,2.2984038]
[1734385110706,0.41264428,4034.3,4033.4,2.2984038]
[1734385110901,0.41264428,4034.2,4033.4,2.2984038]
[1734385111209,0.41264428,4034.1,4033.3,2.2976015]
[1734385111438,0.41264428,4034.0,4033.3,2.2976015]
[1734385111637,1.08070605,4034.4,4033.3,2.2976015]
[1734385111822,0.41276623,4034.3,4033.3,2.2976015]
[1734385112024,0.56211346,4034.2,4033.3,2.2976015]
[1734385112346,0.41277385,4034.1,4033.3,2.2976015]
[1734385112548,0.22937616,4034.0,4033.3,2.2976015]
[1734385112754,0.14934723,4034.2,4033.3,2.2976015]
[1734385112755,0.7761,4034.1,4033.3,2.2976015]
[1734385112919,0.22933379,4034.0,4033.3,2.2976015]
[1734385113548,0.7761,4034.1,4033.3,2.2976015]
[1734385116466,0.2294014,4034.0,4033.3,2.2976015]
[1734385116853,0.7761,4034.1,4033.3,2.2976015]
[1734385117060,0.22938467,4034.0,4033.3,2.2976015]
[1734385119643,0.22938467,4034.0,4033.0,0.8022]
[1734385120085,0.22943129,4033.9,4033.0,0.8022]